[Event "Polish Youth G16 Championship 2023"]
[Site "Jastrzebia Gora"]
[Date "2023.03.13"]
[Round "3.14"]
[White "Pietryk, Joanna"]
[Black "Pastuszko, Katarzyna"]
[Result "0-1"]
[ECO "C60"]
[WhiteElo "1488"]
[BlackElo "1286"]
[Annotator "NA RC COMBH"]
[PlyCount "54"]
[EventDate "2023.03.11"]
[EventType "swiss"]
[EventCountry "POL"]
[SourceTitle "playchess.com"]
[Source "ChessBase"]
[SourceQuality "1"]
[TimeControl "40/5400+30:1800+30"]

1. e4 {[%emt 0:00:03]} e5 {[%emt 0:00:11]} 2. Nf3 {[%emt 0:00:06]} Nc6 {[%emt 0:00:21]} 3. Bb5 {[%emt 0:00:19]} Nge7 {[%emt 0:00:17]} 4. O-O {[%emt 0:01:28]} g6 {[%emt 0:00:24]} 5. Nc3 {[%emt 0:02:11]} Bg7 {[%emt 0:00:36]} 6. Nd5 {[%emt 0:03:31]} O-O {[%emt 0:01:53]} 7. d4 {[%emt 0:05:37]} exd4 {[%emt 0:06:43]} 8. Bg5 {[%emt 0:02:31]} f6 {[%emt 0:04:17]} 9. Bh4 {[%emt 0:02:34]} g5 {[%emt 0:08:27]} 10. Bg3 {[%emt 0:04:51]} d6 {[%emt 0:01:39]} 11. h4 {[%emt 0:04:05]} Bg4 {[%emt 0:03:07]} 12. Bc4 {[%emt 0:02:38]} Kh8 {[%emt 0:02:00]} 13. Qd2 {[%emt 0:02:59]} Bxf3 {[%emt 0:01:29]} 14. gxf3 {[%emt 0:00:06]} gxh4 {[%emt 0:00:57]} 15. Bxh4 {[%emt 0:00:23]} Ne5 {[%emt 0:01:11]} 16. Be2 {[%emt 0:01:20]} Rg8 {[%emt 0:04:27]} 17. Kh2 {[%emt 0:01:49]} Nxd5 {[%emt 0:01:04]} 18. exd5 {[%emt 0:00:12]} d3 {[%emt 0:04:19]} 19. cxd3 {[%emt 0:02:57]} Qd7 {[%emt 0:03:40]} 20. Rg1 {[%emt 0:03:42]} Qf5 {[%emt 0:02:25]} 21. Rg3 {[%emt 0:04:36]} Ng6 {[%emt 0:07:41]} 22. Rg4 {[%emt 0:02:30]} Qh5 {[%emt 0:02:59]} 23. Kg3 {[%emt 0:04:38]} Nxh4 {[%emt 0:01:03]} 24. Rh1 {[%emt 0:00:27]} Nf5+ {[%emt 0:01:35]} 25. Kg2 {[%emt 0:00:23]} Qf7 {[%emt 0:00:36]} 26. Qf4 {[%emt 0:02:22]} Qxd5 {[%emt 0:00:53]} 27. Qh2 {[%emt 0:01:47]} Bh6 {[%emt 0:01:04]} 0-1

[Event "Polish Youth G16 Championship 2023"]
[Site "Jastrzebia Gora"]
[Date "2023.03.13"]
[Round "3.15"]
[White "Dura, Anna"]
[Black "Romejko, Jagoda"]
[Result "1/2-1/2"]
[ECO "A38"]
[WhiteElo "1186"]
[BlackElo "1483"]
[Annotator "NA RC COMBH"]
[PlyCount "100"]
[EventDate "2023.03.11"]
[EventType "swiss"]
[EventCountry "POL"]
[SourceTitle "playchess.com"]
[Source "ChessBase"]
[SourceQuality "1"]
[TimeControl "40/5400+30:1800+30"]

1. c4 {[%emt 0:00:02]} c5 {[%emt 0:00:04]} 2. Nc3 {[%emt 0:00:05]} g6 {[%emt 0:00:03]} 3. g3 {[%emt 0:00:09]} Bg7 {[%emt 0:00:04]} 4. Bg2 {[%emt 0:00:08]} Nc6 {[%emt 0:00:05]} 5. Nf3 {[%emt 0:00:18]} Nf6 {[%emt 0:00:36]} 6. O-O {[%emt 0:00:29]} O-O {[%emt 0:00:31]} 7. a3 {[%emt 0:01:03]} d6 {[%emt 0:01:45]} 8. Rb1 {[%emt 0:02:00]} Bf5 {[%emt 0:03:52]} 9. d3 {[%emt 0:00:30]} Qd7 {[%emt 0:08:06]} 10. b4 {[%emt 0:04:15]} a6 {[%emt 0:11:06]} 11. Re1 {[%emt 0:04:44]} Bh3 {[%emt 0:04:33]} 12. Bh1 {[%emt 0:03:41]} Rab8 {[%emt 0:14:15]} 13. Bd2 {[%emt 0:06:16]} Rfd8 {[%emt 0:08:53]} 14. Ng5 {[%emt 0:04:10]} Bf5 {[%emt 0:03:04]} 15. Nge4 {[%emt 0:02:53]} b6 {[%emt 0:07:54]} 16. Nxf6+ {[%emt 0:06:30]} Bxf6 {[%emt 0:00:29]} 17. Nd5 {[%emt 0:00:53]} Bg7 {[%emt 0:02:45]} 18. Bc3 {[%emt 0:03:57]} b5 {[%emt 0:12:17]} 19. Bxg7 {[%emt 0:04:44]} Kxg7 {[%emt 0:00:13]} 20. Qc2 {[%emt 0:03:55]} cxb4 {[%emt 0:07:25]} 21. axb4 {[%emt 0:00:42]} Kg8 {[%emt 0:02:53]} 22. Ne3 {[%emt 0:05:20]} Be6 {[%emt 0:02:39]} 23. cxb5 {[%emt 0:01:11]} Nd4 {[%emt 0:01:14]} 24. Qb2 {[%emt 0:01:58]} Nxb5 {[%emt 0:00:33]} 25. Rec1 {[%emt 0:02:41]} Rdc8 {[%emt 0:01:13]} 26. Qa1 {[%emt 0:02:39]} Qa7 {[%emt 0:00:59]} 27. Re1 {[%emt 0:05:52]} Bd7 {[%emt 0:01:19]} 28. Rbc1 {[%emt 0:02:54]} Rxc1 {[%emt 0:00:54]} 29. Qxc1 {[%emt 0:01:34]} Rc8 {[%emt 0:00:45]} 30. Qb2 {[%emt 0:01:00]} Be6 {[%emt 0:02:16]} 31. Nd5 {[%emt 0:03:12]} f6 {[%emt 0:01:49]} 32. Nf4 {[%emt 0:01:12]} Bf7 {[%emt 0:00:15]} 33. Rc1 {[%emt 0:01:34]} Qb8 {[%emt 0:00:38]} 34. Nd5 {[%emt 0:03:02]} Kf8 {[%emt 0:00:36]} 35. Ra1 {[%emt 0:02:44]} Qa7 {[%emt 0:00:50]} 36. Qd2 {[%emt 0:01:16]} Kg7 {[%emt 0:00:36]} 37. e3 {[%emt 0:03:04]} Be8 {[%emt 0:00:41]} 38. Bg2 {[%emt 0:01:29]} Bf7 {[%emt 0:00:33]} 39. Qd1 {[%emt 0:01:34]} Be8 {[%emt 0:00:42]} 40. Qa4 {[%emt 0:00:00]} Nc7 {[%emt 0:00:00]} 41. Qa5 {[%emt 0:03:40]} e6 {[%emt 0:05:22]} 42. Nxc7 {[%emt 0:00:58]} Rxc7 {[%emt 0:00:11]} 43. Bf1 {[%emt 0:02:04]} Qb7 {[%emt 0:02:50]} 44. d4 {[%emt 0:04:04]} Bb5 {[%emt 0:01:38]} 45. Bxb5 {[%emt 0:02:00]} axb5 {[%emt 0:00:09]} 46. Qa2 {[%emt 0:00:41]} Kf7 {[%emt 0:00:37]} 47. Qe2 {[%emt 0:00:57]} Rc4 {[%emt 0:01:39]} 48. Qd2 {[%emt 0:01:52]} Qc7 {[%emt 0:02:47]} 49. Kg2 {[%emt 0:01:42]} Rc2 {[%emt 0:01:09]} 50. Qd3 {[%emt 0:01:14]} Rc4 {[%emt 0:02:24]} 1/2-1/2

[Event "Polish Youth G16 Championship 2023"]
[Site "Jastrzebia Gora"]
[Date "2023.03.13"]
[Round "3.16"]
[White "Butkiewicz, Hanna"]
[Black "Pniewska, Beata"]
[Result "0-1"]
[ECO "C15"]
[WhiteElo "1120"]
[BlackElo "1448"]
[Annotator "NA RC COMBH"]
[PlyCount "40"]
[EventDate "2023.03.11"]
[EventType "swiss"]
[EventCountry "POL"]
[SourceTitle "playchess.com"]
[Source "ChessBase"]
[SourceQuality "1"]
[TimeControl "40/5400+30:1800+30"]

1. e4 {[%emt 0:00:05]} e6 {[%emt 0:00:09]} 2. Nc3 {[%emt 0:00:06]} d5 {[%emt 0:01:26]} 3. d4 {[%emt 0:00:12]} Bb4 {[%emt 0:01:17]} 4. exd5 {[%emt 0:00:23]} exd5 {[%emt 0:00:18]} 5. Be3 {[%emt 0:00:14]} Nc6 {[%emt 0:00:55]} 6. Nf3 {[%emt 0:00:43]} Bg4 {[%emt 0:00:51]} 7. Be2 {[%emt 0:00:17]} Nge7 {[%emt 0:00:57]} 8. Qd2 {[%emt 0:02:18]} Qd7 {[%emt 0:04:11]} 9. h3 {[%emt 0:02:17]} Bh5 {[%emt 0:02:00]} 10. O-O {[%emt 0:02:32]} O-O-O {[%emt 0:02:24]} 11. a3 {[%emt 0:00:21]} Bd6 {[%emt 0:01:03]} 12. Nb5 {[%emt 0:01:55]} Nf5 {[%emt 0:04:17]} 13. Nxd6+ {[%emt 0:01:20]} Qxd6 {[%emt 0:00:57]} 14. Bf4 {[%emt 0:01:41]} Qg6 {[%emt 0:01:49]} 15. g4 {[%emt 0:03:36]} Bxg4 {[%emt 0:07:17]} 16. hxg4 {[%emt 0:00:10]} Qxg4+ {[%emt 0:00:16]} 17. Kh1 {[%emt 0:00:28]} Rhe8 {[%emt 0:02:13]} 18. Ne5 {[%emt 0:08:03]} Qh3+ {[%emt 0:03:20]} 19. Kg1 {[%emt 0:01:51]} Nxe5 {[%emt 0:01:23]} 20. dxe5 {[%emt 0:03:22]} Nh4 {[%emt 0:00:24]} 0-1

[Event "Polish Youth G16 Championship 2023"]
[Site "Jastrzebia Gora"]
[Date "2023.03.13"]
[Round "3.17"]
[White "Makarec, Anna"]
[Black "Sprzeczka, Emilia"]
[Result "1/2-1/2"]
[ECO "B23"]
[WhiteElo "1271"]
[BlackElo "1887"]
[Annotator "NA RC COMBH"]
[PlyCount "77"]
[EventDate "2023.03.11"]
[EventType "swiss"]
[EventCountry "POL"]
[SourceTitle "playchess.com"]
[Source "ChessBase"]
[SourceQuality "1"]
[TimeControl "40/5400+30:1800+30"]

1. e4 c5 2. Nc3 g6 3. g3 Bg7 4. Bg2 Nc6 5. Nge2 e6 6. d3 Nge7 7. Be3 Nd4 8. O-O O-O 9. Qd2 d6 10. g4 e5 11. h3 f5 12. gxf5 gxf5 13. f4 Rb8 14. Ng3 Qe8 15. Bxd4 cxd4 16. Nce2 Be6 17. fxe5 dxe5 18. exf5 Nxf5 19. Nxf5 Bxf5 20. Ng3 Qg6 21. Nxf5 Rxf5 22. Rxf5 Qxf5 23. Rf1 Qg6 24. Qa5 Re8 25. Qd5+ Kh8 26. Qxb7 Rg8 27. Kh1 Bf8 28. Be4 Qh6 29. Qd7 Bb4 30. Qf5 Qg7 31. Qf7 Bc5 32. Bd5 Rf8 33. Qxg7+ Kxg7 34. Rxf8 Bxf8 35. Kg2 Kf6 36. Kf3 Bh6 37. c4 dxc3 38. bxc3 Bd2 39. Ke4 1/2-1/2

[Event "Polish Youth G16 Championship 2023"]
[Site "Jastrzebia Gora"]
[Date "2023.03.13"]
[Round "3.18"]
[White "Ekner, Maria"]
[Black "Michalska, Anna-Maria"]
[Result "1/2-1/2"]
[ECO "D11"]
[WhiteElo "1337"]
[BlackElo "1417"]
[Annotator "NA COMBH"]
[PlyCount "100"]
[EventDate "2023.03.11"]
[EventType "swiss"]
[EventCountry "POL"]
[SourceTitle "playchess.com"]
[Source "ChessBase"]
[SourceQuality "1"]
[TimeControl "40/5400+30:1800+30"]

1. d4 d5 2. c4 c6 3. Nf3 Nf6 4. Bg5 e6 5. Nc3 Be7 6. Qc2 Nbd7 7. e3 b6 8. Bd3 Bb7 9. O-O O-O 10. a3 dxc4 11. Bxc4 b5 12. Bd3 a5 13. e4 h6 14. Bxf6 Nxf6 15. e5 Nd5 16. Nxd5 Qxd5 17. Be4 Qd7 18. Rac1 Rfc8 19. Rfd1 Rc7 20. Qe2 Rac8 21. h3 a4 22. Nh2 Rd8 23. Qh5 Bg5 24. Rc3 Qe8 25. Qf3 Be7 26. Ng4 Ba8 27. Qf4 Bg5 28. Qf3 Kh8 29. g3 Be7 30. h4 c5 31. Bxa8 Rxa8 32. Rdc1 Rac8 33. Ne3 Kg8 34. Nf1 Qd7 35. Qd3 Rd8 36. Rd1 c4 37. Qe2 Qc6 38. Nh2 Rcd7 39. Nf3 Rd5 40. Rc2 Bc5 41. Rcd2 Bb6 42. Qe4 Qd7 43. Qf4 Ba5 44. Rc2 Rc8 45. Rdc1 Rc7 46. g4 Bb6 47. Rd1 Qe7 48. Rdc1 Rcd7 49. Rd1 Bc7 50. Kg2 Bb6 1/2-1/2

[Event "Polish Youth G16 Championship 2023"]
[Site "Jastrzebia Gora"]
[Date "2023.03.13"]
[Round "3.19"]
[White "Oborska, Magda"]
[Black "Danek, Wiktoria"]
[Result "1-0"]
[ECO "C70"]
[WhiteElo "1613"]
[BlackElo "1161"]
[Annotator "NA RC COMBH"]
[PlyCount "77"]
[EventDate "2023.03.11"]
[EventType "swiss"]
[EventCountry "POL"]
[SourceTitle "playchess.com"]
[Source "ChessBase"]
[SourceQuality "1"]
[TimeControl "40/5400+30:1800+30"]

1. e4 e5 {[%emt 0:00:04]} 2. Nf3 {[%emt 0:00:04]} Nc6 {[%emt 0:00:30]} 3. Bb5 {[%emt 0:00:30]} a6 {[%emt 0:00:30]} 4. Ba4 {[%emt 0:00:30]} Bc5 {[%emt 0:00:30]} 5. O-O {[%emt 0:00:30]} Nge7 {[%emt 0:00:30]} 6. d3 {[%emt 0:00:00]} O-O {[%emt 0:03:18]} 7. h3 {[%emt 0:00:18]} d6 {[%emt 0:00:30]} 8. Nc3 h6 9. Be3 {[%emt 0:03:24]} Ba7 {[%emt 0:05:01]} 10. Bxa7 {[%emt 0:00:27]} Rxa7 {[%emt 0:00:18]} 11. Ne2 {[%emt 0:01:25]} b5 {[%emt 0:12:57]} 12. Bb3 {[%emt 0:00:07]} Na5 {[%emt 0:00:25]} 13. d4 {[%emt 0:01:17]} Nxb3 {[%emt 0:00:30]} 14. axb3 {[%emt 0:00:30]} exd4 {[%emt 0:00:30]} 15. Nfxd4 {[%emt 0:00:30]} Bb7 {[%emt 0:00:30]} 16. Nxb5 {[%emt 0:00:30]} Ra8 {[%emt 0:00:30]} 17. Nbc3 {[%emt 0:00:30]} Ng6 {[%emt 0:00:30]} 18. Ng3 {[%emt 0:00:30]} Qg5 {[%emt 0:00:30]} 19. Nd5 {[%emt 0:00:30]} Bxd5 {[%emt 0:00:30]} 20. Qxd5 {[%emt 0:00:30]} Qd8 {[%emt 0:00:30]} 21. Qc6 {[%emt 0:00:30]} Ne5 {[%emt 0:00:30]} 22. Qc3 {[%emt 0:00:30]} Re8 {[%emt 0:00:30]} 23. Nf5 {[%emt 0:00:30]} f6 {[%emt 0:00:30]} 24. Qg3 {[%emt 0:00:30]} g5 {[%emt 0:00:30]} 25. Nxh6+ {[%emt 0:00:30]} Kh7 {[%emt 0:00:30]} 26. Nf5 {[%emt 0:00:30]} Rh8 {[%emt 0:00:30]} 27. Ra4 {[%emt 0:00:30]} c6 {[%emt 0:00:30]} 28. f4 {[%emt 0:00:30]} Nf7 {[%emt 0:00:30]} 29. fxg5 {[%emt 0:00:30]} fxg5 {[%emt 0:00:30]} 30. Rd1 {[%emt 0:00:30]} d5 {[%emt 0:00:30]} 31. Qc3 {[%emt 0:00:30]} Qb6+ {[%emt 0:00:30]} 32. Kh1 {[%emt 0:00:30]} Rhg8 {[%emt 0:00:30]} 33. Qf6 {[%emt 0:00:30]} Qc7 {[%emt 0:00:30]} 34. exd5 {[%emt 0:00:30]} cxd5 {[%emt 0:00:30]} 35. Rxd5 {[%emt 0:00:30]} Rg6 {[%emt 0:00:30]} 36. Rc4 {[%emt 0:00:30]} Rxf6 {[%emt 0:00:30]} 37. Rxc7 {[%emt 0:00:30]} Kg6 {[%emt 0:00:30]} 38. Nd4 {[%emt 0:00:30]} Re8 {[%emt 0:00:30]} 39. Nf3 {[%emt 0:00:30]} 1-0

[Event "Polish Youth G16 Championship 2023"]
[Site "Jastrzebia Gora"]
[Date "2023.03.13"]
[Round "3.20"]
[White "Idzior, Izabela"]
[Black "Nieckarz, Maja"]
[Result "0-1"]
[ECO "B76"]
[WhiteElo "1287"]
[BlackElo "1493"]
[Annotator "NA RC COMBH"]
[PlyCount "40"]
[EventDate "2023.03.11"]
[EventType "swiss"]
[EventCountry "POL"]
[SourceTitle "playchess.com"]
[Source "ChessBase"]
[SourceQuality "1"]
[TimeControl "40/5400+30:1800+30"]

1. e4 {[%emt 0:00:03]} c5 {[%emt 0:00:06]} 2. Nf3 {[%emt 0:00:04]} d6 {[%emt 0:00:07]} 3. d4 {[%emt 0:00:03]} cxd4 {[%emt 0:00:05]} 4. Nxd4 {[%emt 0:00:03]} Nf6 {[%emt 0:00:06]} 5. Nc3 {[%emt 0:00:08]} g6 {[%emt 0:00:07]} 6. Be3 {[%emt 0:00:11]} Bg7 {[%emt 0:00:07]} 7. f3 {[%emt 0:00:21]} Nc6 8. Qd2 {[%emt 0:01:07]} O-O {[%emt 0:00:15]} 9. O-O-O {[%emt 0:00:23]} d5 {[%emt 0:00:06]} 10. Nxc6 {[%emt 0:14:30]} bxc6 {[%emt 0:00:13]} 11. g4 {[%emt 0:03:48]} Qa5 {[%emt 0:06:15]} 12. h4 {[%emt 0:16:52]} dxe4 {[%emt 0:03:51]} 13. g5 {[%emt 0:01:27]} Nh5 {[%emt 0:00:54]} 14. Nxe4 {[%emt 0:02:07]} Qxa2 {[%emt 0:00:45]} 15. Qb4 {[%emt 0:01:31]} Qa1+ {[%emt 0:02:17]} 16. Kd2 {[%emt 0:00:08]} Qxb2 {[%emt 0:01:25]} 17. Qxe7 {[%emt 0:01:32]} Bf5 {[%emt 0:00:56]} 18. Rc1 {[%emt 0:06:20]} Bxe4 {[%emt 0:00:25]} 19. fxe4 {[%emt 0:00:16]} Ng3 {[%emt 0:01:10]} 20. Rg1 {[%emt 0:00:39]} Qc3+ {[%emt 0:00:44]} 0-1

[Event "Polish Youth G16 Championship 2023"]
[Site "Jastrzebia Gora"]
[Date "2023.03.13"]
[Round "3.21"]
[White "Lach, Alicja"]
[Black "Niedorys, Karolina"]
[Result "0-1"]
[ECO "B23"]
[WhiteElo "1231"]
[BlackElo "1458"]
[Annotator "NA RC COMBH"]
[PlyCount "59"]
[EventDate "2023.03.11"]
[EventType "swiss"]
[EventCountry "POL"]
[SourceTitle "playchess.com"]
[Source "ChessBase"]
[SourceQuality "1"]
[TimeControl "40/5400+30:1800+30"]

1. e4 {[%emt 0:00:01]} c5 {[%emt 0:00:05]} 2. Nc3 {[%emt 0:00:03]} d6 {[%emt 0:00:30]} 3. f4 {[%emt 0:00:09]} Nc6 {[%emt 0:00:48]} 4. Nf3 {[%emt 0:00:15]} g6 {[%emt 0:00:28]} 5. Bc4 {[%emt 0:00:21]} Bg7 {[%emt 0:01:41]} 6. d3 {[%emt 0:00:13]} e6 {[%emt 0:07:05]} 7. O-O {[%emt 0:06:34]} Nge7 {[%emt 0:00:36]} 8. Qe1 {[%emt 0:01:46]} O-O {[%emt 0:00:57]} 9. Qh4 {[%emt 0:05:43]} d5 {[%emt 0:03:58]} 10. Bb3 {[%emt 0:05:06]} Nd4 {[%emt 0:05:14]} 11. e5 {[%emt 0:07:16]} Nxf3+ {[%emt 0:06:15]} 12. Rxf3 {[%emt 0:02:13]} Nf5 {[%emt 0:00:37]} 13. Qe1 {[%emt 0:05:06]} Bd7 {[%emt 0:02:59]} 14. Rb1 {[%emt 0:06:25]} Nd4 {[%emt 0:03:52]} 15. Rf2 {[%emt 0:02:05]} Qc7 {[%emt 0:06:44]} 16. Ne2 {[%emt 0:04:00]} Nf5 {[%emt 0:01:22]} 17. a3 {[%emt 0:02:41]} c4 {[%emt 0:03:40]} 18. dxc4 {[%emt 0:03:19]} dxc4 {[%emt 0:00:26]} 19. Ba2 {[%emt 0:01:01]} b5 {[%emt 0:04:04]} 20. Bd2 {[%emt 0:04:17]} Bc6 {[%emt 0:03:38]} 21. Bb4 {[%emt 0:05:21]} Rfc8 {[%emt 0:03:51]} 22. Ba5 {[%emt 0:02:11]} Qb7 {[%emt 0:00:43]} 23. Rd1 {[%emt 0:00:20]} Ne3 {[%emt 0:02:19]} 24. Rd2 {[%emt 0:08:22]} Nxg2 {[%emt 0:05:19]} 25. Qd1 {[%emt 0:03:59]} Ne3 {[%emt 0:02:25]} 26. Qc1 {[%emt 0:02:14]} Ng4 {[%emt 0:02:39]} 27. Rf1 {[%emt 0:01:01]} Bg2 {[%emt 0:14:34]} 28. Re1 {[%emt 0:02:58]} Bh3 {[%emt 0:02:01]} 29. Ng3 {[%emt 0:01:35]} Bf8 {[%emt 0:00:56]} 30. Qd1 0-1

[Event "Polish Youth G16 Championship 2023"]
[Site "Jastrzebia Gora"]
[Date "2023.03.13"]
[Round "3.22"]
[White "Racis, Dominika"]
[Black "Gajec, Roza"]
[Result "0-1"]
[ECO "A56"]
[WhiteElo "1201"]
[BlackElo "1341"]
[Annotator "NA RC COMBH"]
[PlyCount "74"]
[EventDate "2023.03.11"]
[EventType "swiss"]
[EventCountry "POL"]
[SourceTitle "playchess.com"]
[Source "ChessBase"]
[SourceQuality "1"]
[TimeControl "40/5400+30:1800+30"]

1. d4 {[%emt 0:00:03]} Nf6 {[%emt 0:00:13]} 2. c4 {[%emt 0:00:09]} c5 {[%emt 0:00:07]} 3. dxc5 {[%emt 0:02:47]} Qa5+ {[%emt 0:03:07]} 4. Bd2 {[%emt 0:04:59]} Qxc5 {[%emt 0:00:23]} 5. e3 {[%emt 0:03:10]} g6 {[%emt 0:00:52]} 6. Nc3 {[%emt 0:03:21]} Bg7 {[%emt 0:01:05]} 7. Nf3 {[%emt 0:02:01]} O-O {[%emt 0:00:25]} 8. Be2 {[%emt 0:04:28]} d6 {[%emt 0:01:54]} 9. Nd4 {[%emt 0:06:53]} a6 {[%emt 0:04:02]} 10. Nb3 {[%emt 0:13:07]} Qc7 {[%emt 0:00:50]} 11. Rc1 {[%emt 0:09:34]} Nbd7 {[%emt 0:02:59]} 12. e4 {[%emt 0:07:52]} Nc5 {[%emt 0:03:13]} 13. f3 Be6 {[%emt 0:06:37]} 14. Nd5 {[%emt 0:07:48]} Bxd5 {[%emt 0:03:36]} 15. cxd5 {[%emt 0:00:12]} Rfc8 {[%emt 0:01:39]} 16. g4 {[%emt 0:09:33]} Qd8 {[%emt 0:02:09]} 17. h4 {[%emt 0:01:32]} Nfd7 {[%emt 0:02:33]} 18. Bc3 {[%emt 0:00:44]} Nxb3 {[%emt 0:00:56]} 19. Qxb3 {[%emt 0:00:39]} Nc5 {[%emt 0:00:45]} 20. Qd1 {[%emt 0:00:30]} Bxc3+ {[%emt 0:00:12]} 21. Rxc3 {[%emt 0:00:07]} Qa5 {[%emt 0:00:41]} 22. a3 {[%emt 0:00:57]} Na4 {[%emt 0:01:03]} 23. Kf2 {[%emt 0:01:25]} Nxc3 {[%emt 0:00:30]} 24. bxc3 {[%emt 0:00:03]} Rxc3 {[%emt 0:01:16]} 25. h5 {[%emt 0:00:08]} Qc5+ {[%emt 0:00:30]} 26. Kg3 {[%emt 0:00:16]} Qe3 {[%emt 0:01:28]} 27. hxg6 {[%emt 0:00:29]} fxg6 {[%emt 0:00:38]} 28. Qf1 {[%emt 0:01:16]} Rf8 {[%emt 0:03:01]} 29. Rh2 {[%emt 0:01:25]} Qxe4 {[%emt 0:01:31]} 30. Qh1 {[%emt 0:00:26]} Qf4+ {[%emt 0:01:49]} 31. Kf2 {[%emt 0:00:11]} Qe3+ {[%emt 0:05:01]} 32. Kg3 {[%emt 0:00:13]} Rc2 {[%emt 0:01:13]} 33. Qd1 {[%emt 0:04:49]} Rd2 {[%emt 0:03:08]} 34. Qf1 {[%emt 0:00:27]} g5 {[%emt 0:03:19]} 35. a4 {[%emt 0:09:59]} Rf6 {[%emt 0:01:16]} 36. Qe1 {[%emt 0:00:45]} Qe5+ {[%emt 0:00:47]} 37. Kh3 {[%emt 0:00:24]} Rh6+ {[%emt 0:00:10]} 0-1

[Event "Polish Youth G16 Championship 2023"]
[Site "Jastrzebia Gora"]
[Date "2023.03.13"]
[Round "3.23"]
[White "Domeradzka, Karolina"]
[Black "Zgoda, Aleksandra"]
[Result "0-1"]
[ECO "B43"]
[WhiteElo "1194"]
[BlackElo "1308"]
[Annotator "NA RC COMBH"]
[PlyCount "70"]
[EventDate "2023.03.11"]
[EventType "swiss"]
[EventCountry "POL"]
[SourceTitle "playchess.com"]
[Source "ChessBase"]
[SourceQuality "1"]
[TimeControl "40/5400+30:1800+30"]

1. e4 c5 2. Nf3 e6 3. Nc3 a6 4. d4 cxd4 5. Nxd4 b5 6. a3 Bb7 7. Be3 Nc6 8. f3 Nf6 9. Be2 Be7 10. O-O O-O 11. Nb3 d6 12. Qe1 Qc7 13. Qf2 Nd7 14. Rad1 Rac8 15. Bd3 Nce5 16. Nd4 Nc5 17. Bc1 Rfd8 18. f4 Nexd3 19. cxd3 d5 20. e5 Nd7 21. Nde2 b4 22. axb4 Bxb4 23. d4 f5 24. Kh1 Nb6 25. Rg1 Bc6 26. g4 Rf8 27. gxf5 Rxf5 28. Ng3 Rf7 29. Rd3 Na4 30. Nh5 Kh8 31. Rh3 Bb5 32. Nxb5 axb5 33. Qh4 Qc2 34. Nf6 gxf6 35. exf6 Qe4+ 0-1

[Event "Polish Youth G16 Championship 2023"]
[Site "Jastrzebia Gora"]
[Date "2023.03.14"]
[Round "4.1"]
[White "Ziobrowska, Maja"]
[Black "Bar, Klaudia"]
[Result "0-1"]
[ECO "B32"]
[WhiteElo "1758"]
[BlackElo "1731"]
[Annotator "NA RC COMBH"]
[PlyCount "84"]
[EventDate "2023.03.11"]
[EventType "swiss"]
[EventCountry "POL"]
[SourceTitle "playchess.com"]
[Source "ChessBase"]
[SourceQuality "1"]
[TimeControl "40/5400+30:1800+30"]

1. e4 {[%emt 0:00:04]} c5 {[%emt 0:00:03]} 2. Nf3 {[%emt 0:00:06]} Nc6 {[%emt 0:00:05]} 3. d4 {[%emt 0:00:04]} cxd4 {[%emt 0:00:04]} 4. Nxd4 {[%emt 0:00:04]} e5 {[%emt 0:00:07]} 5. Nb5 {[%emt 0:00:06]} d6 {[%emt 0:00:04]} 6. N1c3 {[%emt 0:00:04]} a6 {[%emt 0:00:05]} 7. Na3 {[%emt 0:00:06]} Be6 {[%emt 0:00:05]} 8. Nc4 {[%emt 0:00:09]} Rb8 {[%emt 0:00:06]} 9. a4 {[%emt 0:00:08]} Nb4 {[%emt 0:00:21]} 10. Ne3 {[%emt 0:04:44]} Nf6 {[%emt 0:00:12]} 11. Ncd5 {[%emt 0:02:23]} Bxd5 {[%emt 0:02:03]} 12. exd5 {[%emt 0:00:15]} Qa5 {[%emt 0:01:06]} 13. Bd2 {[%emt 0:01:25]} Qc5 {[%emt 0:00:26]} 14. c4 {[%emt 0:09:36]} Ne4 {[%emt 0:00:49]} 15. Bc3 {[%emt 0:02:14]} a5 {[%emt 0:20:57]} 16. Qf3 {[%emt 0:12:20]} Nf6 {[%emt 0:11:28]} 17. Be2 {[%emt 0:03:01]} Nd7 {[%emt 0:08:10]} 18. O-O {[%emt 0:03:22]} g6 {[%emt 0:00:58]} 19. Kh1 {[%emt 0:03:54]} Bg7 {[%emt 0:00:20]} 20. Qg3 {[%emt 0:08:14]} O-O {[%emt 0:01:27]} 21. f4 {[%emt 0:12:07]} f5 {[%emt 0:03:16]} 22. fxe5 {[%emt 0:11:54]} dxe5 {[%emt 0:02:11]} 23. Nd1 {[%emt 0:12:08]} Nc2 {[%emt 0:05:00]} 24. Rb1 {[%emt 0:01:18]} Nd4 {[%emt 0:01:13]} 25. Qe3 {[%emt 0:01:26]} Nxe2 {[%emt 0:08:58]} 26. Qxe2 {[%emt 0:00:04]} Rbc8 {[%emt 0:00:16]} 27. b3 {[%emt 0:01:18]} e4 {[%emt 0:01:42]} 28. Bxg7 {[%emt 0:03:15]} Kxg7 {[%emt 0:00:09]} 29. Nc3 {[%emt 0:00:22]} Ne5 {[%emt 0:05:36]} 30. Qb2 {[%emt 0:02:19]} Qd4 {[%emt 0:00:18]} 31. Ne2 {[%emt 0:01:08]} Qxb2 {[%emt 0:00:04]} 32. Rxb2 {[%emt 0:00:04]} Nd3 {[%emt 0:00:13]} 33. Rd2 {[%emt 0:00:19]} Kf6 {[%emt 0:01:34]} 34. g3 {[%emt 0:02:51]} Ke5 {[%emt 0:00:48]} 35. h4 {[%emt 0:03:07]} Rf6 {[%emt 0:03:52]} 36. Kg2 {[%emt 0:01:17]} h6 {[%emt 0:00:44]} 37. Rh1 {[%emt 0:00:51]} Rb6 {[%emt 0:01:09]} 38. Rb1 {[%emt 0:00:13]} g5 {[%emt 0:00:17]} 39. hxg5 {[%emt 0:00:53]} hxg5 {[%emt 0:00:02]} 40. Rh1 {[%emt 0:00:00]} Rxb3 {[%emt 0:00:00]} 41. Rh5 {[%emt 0:07:48]} Rxc4 {[%emt 0:15:39]} 42. Rxg5 {[%emt 0:00:58]} Ne1+ {[%emt 0:00:45]} 0-1